bitfinex/quotes_BTCUSD_20220115
["timestamp","ask_amount","ask_price","bid_price","bid_amount"]
[1642260251984,0.00074858,43161.0,43160.0,0.433228]
[1642260252226,0.00074858,43161.0,43160.0,1.883228]
[1642260252630,0.00074858,43161.0,43160.0,1.929528]
[1642260252827,0.001,43165.0,43161.0,2.557914]
[1642260253026,0.001,43165.0,43163.0,0.057914]
[1642260253227,0.001,43165.0,43164.0,0.375273]
[1642260253431,2.029,43174.0,43164.0,1.8197045]
[1642260253628,1.0978,43174.0,43172.0,0.00129283]
[1642260253826,1.0978,43174.0,43172.0,0.10549983]
[1642260254030,0.3014,43180.0,43172.0,0.16340719]
[1642260254227,0.3014,43180.0,43172.0,0.43954282]
[1642260254427,0.0003438,43179.0,43173.0,0.26586263]
[1642260254827,0.00032661,43178.0,43173.0,0.26586263]
[1642260255230,0.00030942,43177.0,43173.0,0.26586263]
[1642260255728,0.00029223,43176.0,43173.0,0.32377463]
[1642260255989,0.28,43173.0,43172.0,0.38034299]
[1642260256187,0.28,43173.0,43172.0,0.75568299]
[1642260256389,0.28024066,43173.0,43172.0,0.75568299]
[1642260256986,0.28024066,43173.0,43172.0,0.47954736]
[1642260257186,0.28024066,43173.0,43172.0,0.0463]
[1642260257988,0.28024066,43173.0,43166.0,0.115832]
[1642260257989,0.32724409,43171.0,43166.0,0.115832]
[1642260258187,0.32724409,43171.0,43167.0,0.05792204]
[1642260258389,0.00018909,43170.0,43167.0,0.05792204]
[1642260258587,0.00018909,43170.0,43168.0,0.37534]
[1642260258887,0.0001719,43169.0,43168.0,0.37534]
[1642260260131,0.0001719,43169.0,43168.0,0.58482675]
[1642260260336,0.0001719,43169.0,43168.0,0.63112675]
[1642260261132,0.0001719,43169.0,43168.0,1.58112675]
[1642260261332,0.0001719,43169.0,43168.0,1.58236795]
[1642260261933,0.0001719,43169.0,43168.0,0.74818195]
[1642260263032,0.0001719,43169.0,43168.0,0.9386952]
[1642260264094,0.0001719,43169.0,43168.0,1.3386952]
[1642260264477,0.0001719,43169.0,43168.0,0.9386952]
[1642260266882,0.00086299,43171.0,43169.0,2.35]
[1642260267126,0.00086299,43171.0,43170.0,2.2113223]
[1642260267326,0.28,43173.0,43170.0,2.2113223]
[1642260267526,0.28,43173.0,43172.0,2.07039221]
[1642260268031,0.28,43173.0,43172.0,1.12784445]
[1642260268032,0.28006876,43173.0,43172.0,1.12784445]
[1642260268628,0.28006876,43173.0,43172.0,1.32026083]
[1642260270029,0.27506876,43173.0,43172.0,1.32026083]
[1642260274205,0.27506876,43173.0,43172.0,0.87517162]
[1642260274408,0.27506876,43173.0,43172.0,0.68275524]
[1642260275428,0.27506876,43173.0,43172.0,0.93117157]
[1642260277031,0.27506876,43173.0,43172.0,0.68275524]
[1642260277230,0.27006876,43173.0,43172.0,0.375303]
[1642260277430,0.27006876,43173.0,43171.0,0.05789872]
[1642260278030,0.26995769,43173.0,43172.0,0.26824394]
[1642260278231,0.26995769,43173.0,43172.0,0.64358394]
[1642260278485,0.26995769,43173.0,43172.0,0.9859057]
[1642260279981,0.26995769,43173.0,43172.0,1.1017107]
[1642260290528,0.26495769,43173.0,43172.0,1.1017107]
[1642260291730,0.26495769,43173.0,43172.0,0.9859057]
[1642260293481,0.26495769,43173.0,43172.0,1.0438077]
[1642260293682,0.26495769,43173.0,43172.0,1.3438077]
[1642260295084,0.26495769,43173.0,43172.0,1.0438077]
[1642260296086,0.26495769,43173.0,43172.0,0.9859057]
[1642260302181,0.26495769,43173.0,43172.0,1.0459057]
[1642260303381,0.26495769,43173.0,43172.0,2.1959057]
[1642260303382,6.876e-05,43173.0,43172.0,2.1959057]
[1642260303982,0.00087158,43175.0,43173.0,2.0]
[1642260304187,0.00087158,43175.0,43174.0,1.971313]
[1642260304382,0.00087158,43175.0,43174.0,2.18134458]
[1642260304634,0.440504,43176.0,43175.0,1.61579543]
[1642260304837,0.440504,43176.0,43175.0,1.99110643]
[1642260305635,0.440504,43176.0,43175.0,0.84110643]
[1642260306537,0.440504,43176.0,43175.0,0.49110643]
[1642260307136,0.440504,43176.0,43175.0,0.05789743]
[1642260310586,0.440504,43176.0,43173.0,0.057898]
[1642260311586,0.43619622,43176.0,43173.0,0.057898]
[1642260311790,0.30730625,43175.0,43173.0,0.057898]
[1642260311991,0.013,43173.0,43172.0,0.06]
[1642260312441,0.863,43173.0,43172.0,0.06]
[1642260312645,1.08282675,43173.0,43172.0,0.06]
[1642260313045,0.35,43172.0,43164.0,0.59318406]
[1642260313243,0.23282675,43173.0,43164.0,0.59318406]
[1642260313442,0.23282675,43173.0,43160.0,0.59362133]
[1642260313443,0.23282675,43173.0,43167.0,0.33299204]
[1642260313845,0.23282675,43173.0,43168.0,8.595e-05]
[1642260314349,0.23369835,43173.0,43163.0,0.59318406]
[1642260314544,6.876e-05,43172.0,43163.0,0.59318406]
[1642260314744,6.876e-05,43172.0,43164.0,6.876e-05]
[1642260315243,0.34313404,43170.0,43164.0,6.876e-05]
[1642260315444,0.33191145,43167.0,43164.0,6.876e-05]
[1642260315645,0.33191145,43167.0,43165.0,0.37534]
[1642260315646,0.19938379,43166.0,43165.0,0.37534]
[1642260315901,0.33191145,43167.0,43164.0,6.876e-05]
[1642260316099,0.33316063,43167.0,43164.0,6.876e-05]
[1642260316700,0.33316063,43167.0,43163.0,8.595e-05]
[1642260317502,0.33316063,43167.0,43161.0,0.00012033]
[1642260317702,0.43316063,43167.0,43161.0,0.00012033]
[1642260317904,0.22224728,43166.0,43161.0,0.00012033]
[1642260318103,0.31943738,43163.0,43161.0,0.00012033]
[1642260318307,0.65,43162.0,43161.0,0.00012033]
[1642260318704,0.75,43162.0,43161.0,0.00012033]
[1642260318907,0.1,43162.0,43161.0,0.00012033]
[1642260319303,0.1,43162.0,43159.0,0.59318406]
[1642260319304,0.1,43162.0,43159.0,0.54870439]
[1642260319736,0.1,43162.0,43157.0,0.69236502]
[1642260319941,0.00125373,43163.0,43156.0,0.31533352]
[1642260320236,0.00212538,43163.0,43157.0,6.876e-05]
[1642260320636,0.00212538,43163.0,43154.0,0.00012033]
[1642260320935,0.32844756,43163.0,43154.0,0.00012033]
[1642260321136,0.42844756,43163.0,43154.0,0.00012033]
[1642260321337,0.42757591,43163.0,43155.0,0.32624614]
[1642260321536,0.10212537,43163.0,43155.0,0.32624614]
[1642260321736,0.32861812,43160.0,43156.0,0.37542595]
[1642260322335,0.32861812,43160.0,43156.0,8.595e-05]
[1642260322739,0.32861812,43160.0,43154.0,0.00012033]
[1642260322936,0.32861812,43160.0,43154.0,0.31155114]
[1642260323137,1.87232683,43157.0,43154.0,0.31155114]
[1642260323387,0.32861812,43160.0,43155.0,0.00010314]
[1642260323591,0.54540644,43160.0,43155.0,0.00010314]
[1642260323789,0.10212536,43163.0,43155.0,0.00010314]
[1642260323790,0.31804205,43163.0,43155.0,0.00010314]
[1642260323987,0.31891367,43163.0,43155.0,0.00010314]
[1642260324188,0.31891367,43163.0,43154.0,0.26683395]
[1642260324390,0.21891367,43163.0,43154.0,0.26683395]
[1642260324590,0.00012033,43162.0,43155.0,0.37534]
[1642260324795,0.00012033,43162.0,43161.0,0.25081284]
[1642260324993,0.21678832,43163.0,43161.0,0.25081284]
[1642260325191,0.00087164,43163.0,43161.0,0.25081284]
[1642260325391,0.00087164,43163.0,43161.0,0.30873784]
[1642260325792,0.2855,43175.0,43163.0,1.2]
[1642260325993,0.30490238,43172.0,43168.0,0.33198246]
[1642260326393,0.30490238,43172.0,43166.0,0.057919]
[1642260326594,0.30490238,43172.0,43162.0,0.00123844]
[1642260327139,0.30490238,43172.0,43162.0,0.69360346]
[1642260327343,0.30490238,43172.0,43166.0,0.30549528]
[1642260327735,0.40490238,43172.0,43166.0,0.30549528]
[1642260328335,0.18946329,43171.0,43166.0,0.30549528]
[1642260328536,0.19347865,43171.0,43166.0,0.30549528]
[1642260328741,0.00025785,43170.0,43166.0,0.30549528]
[1642260329136,0.00024066,43169.0,43166.0,0.30549528]
[1642260329335,0.00024066,43169.0,43166.0,0.26029528]
[1642260329539,0.00022347,43168.0,43167.0,0.37534]
[1642260330337,0.00022347,43168.0,43167.0,2.07534]
[1642260330994,0.00022347,43168.0,43167.0,0.37534]
[1642260331193,0.00022347,43168.0,43167.0,0.92534]
[1642260332193,0.00022347,43168.0,43167.0,1.37534]
[1642260332396,0.00022347,43168.0,43167.0,0.92534]
[1642260333194,0.00022347,43168.0,43167.0,1.67534]
[1642260333697,0.00087083,43170.0,43168.0,2.1]
[1642260333894,0.00087083,43170.0,43169.0,1.871372]
[1642260334096,0.00087083,43170.0,43169.0,0.071372]
[1642260334295,0.00087083,43170.0,43169.0,1.067672]
[1642260334495,0.013,43173.0,43169.0,1.067672]
[1642260334740,0.013,43173.0,43172.0,1.41227397]
[1642260334937,0.013,43173.0,43172.0,1.45857397]
[1642260335243,0.583,43181.0,43172.0,1.45857397]
[1642260335244,0.3116,43190.0,43173.0,0.6]
[1642260335537,0.00012033,43175.0,43173.0,0.6]
[1642260335737,0.00012033,43175.0,43174.0,1.42534]
[1642260335937,0.22614773,43187.0,43174.0,0.37534]
[1642260336237,0.22614773,43187.0,43172.0,0.38456124]
[1642260336238,2.39534044,43180.0,43172.0,0.38456124]
[1642260336439,2.39534044,43180.0,43179.0,0.30677786]
[1642260336637,0.00123106,43189.0,43179.0,0.30677786]
[1642260336837,0.21642199,43187.0,43179.0,0.30677786]
[1642260337038,0.00025785,43183.0,43179.0,0.30677786]
[1642260337238,0.00025785,43183.0,43180.0,0.37534]
[1642260337437,0.00083928,43186.0,43180.0,0.37534]
[1642260337438,0.00024066,43182.0,43180.0,0.37534]
[1642260337843,0.00022347,43181.0,43180.0,0.37534]
[1642260338237,0.00029223,43181.0,43180.0,0.37534]
[1642260339489,0.00029223,43181.0,43180.0,0.32994]
[1642260340093,0.00029223,43181.0,43180.0,0.67994]
[1642260342151,0.00029223,43181.0,43180.0,2.12994]
[1642260342548,0.00029223,43181.0,43180.0,2.17624]
[1642260347588,0.00029223,43181.0,43180.0,0.72624]
[1642260347987,0.00029223,43181.0,43180.0,1.32624]
[1642260350041,0.00029223,43181.0,43180.0,1.67624]
[1642260351041,0.00029223,43181.0,43180.0,1.32624]
[1642260352046,0.00029223,43181.0,43180.0,1.72624]
[1642260352445,0.00029223,43181.0,43180.0,1.32624]
[1642260353046,0.00029223,43181.0,43180.0,2.592014]
[1642260353496,0.00029223,43181.0,43180.0,3.18242015]
[1642260354298,0.00029223,43181.0,43180.0,2.592014]
[1642260354700,0.00029223,43181.0,43180.0,2.59328968]
[1642260355600,0.00029223,43181.0,43180.0,2.47751568]
[1642260356601,0.00029223,43181.0,43180.0,3.0686358]
[1642260357000,0.00029223,43181.0,43180.0,2.47751568]
[1642260357841,0.00029223,43181.0,43180.0,3.06863453]
[1642260359344,0.00029223,43181.0,43180.0,3.12652053]
[1642260359746,0.2895336,43193.0,43181.0,2.7]
[1642260359944,0.00347326,43191.0,43184.0,0.057883]
[1642260360144,8.595e-05,43190.0,43185.0,0.61246981]
[1642260360346,8.595e-05,43190.0,43186.0,0.31135065]
[1642260360542,0.00347326,43191.0,43189.0,1.571204]
[1642260360744,0.00347326,43191.0,43190.0,1.97232484]
[1642260360993,0.0005336,43193.0,43190.0,2.30219484]
[1642260361196,0.001402,43193.0,43191.0,0.071197]
[1642260361492,0.00012033,43192.0,43191.0,0.071197]
[1642260361891,0.00012033,43192.0,43191.0,1.071197]
[1642260362793,0.00012033,43192.0,43191.0,0.071197]
[1642260363994,0.00012033,43192.0,43190.0,0.27232484]
[1642260364198,0.00012033,43192.0,43191.0,0.375235]
[1642260364394,0.0005336,43193.0,43191.0,0.375235]
[1642260364637,0.0005336,43193.0,43191.0,0.330535]
[1642260367046,0.0005336,43193.0,43191.0,0.388416]
[1642260369988,0.0005336,43193.0,43191.0,0.330535]
[1642260374540,0.0005336,43193.0,43191.0,0.285935]
[1642260379087,0.0005336,43193.0,43191.0,0.28359743]
[1642260379740,0.0005336,43193.0,43191.0,0.23889743]
[1642260382942,0.0005336,43193.0,43191.0,2.03889743]
[1642260384691,0.0005336,43193.0,43191.0,1.99399743]
[1642260389639,0.0005336,43193.0,43191.0,1.94939743]
[1642260393194,0.0005336,43193.0,43191.0,1.8]
[1642260394641,0.0005336,43193.0,43191.0,1.755]
[1642260394846,0.0005336,43193.0,43192.0,0.175217]
[1642260395243,0.00067112,43193.0,43192.0,0.175217]
[1642260398593,0.00067112,43193.0,43192.0,0.925217]
[1642260399596,0.00067112,43193.0,43192.0,0.175217]
[1642260399796,0.00067112,43193.0,43192.0,0.130117]
[1642260400498,0.00067112,43193.0,43192.0,0.480117]
[1642260401096,0.00067112,43193.0,43192.0,0.130117]
[1642260402946,0.00067112,43193.0,43191.0,1.755]
[1642260403343,0.00012033,43192.0,43191.0,1.755]
[1642260403548,0.00012033,43192.0,43191.0,1.885119]
[1642260404844,0.00012033,43192.0,43191.0,1.840519]
[1642260405245,0.00012033,43192.0,43191.0,2.13839813]
[1642260405443,0.00012033,43192.0,43191.0,1.840519]
[1642260408192,0.00012033,43192.0,43191.0,1.840521]
[1642260409842,0.00012033,43192.0,43191.0,1.795821]
[1642260413793,0.00012033,43192.0,43191.0,1.785821]
[1642260414393,0.39202626,43199.0,43198.0,0.33091559]
[1642260414594,0.29202626,43199.0,43198.0,0.33091559]
[1642260414793,0.39202626,43199.0,43198.0,0.28631559]
[1642260415594,0.39202626,43199.0,43198.0,0.61704454]
[1642260415994,0.29202626,43199.0,43198.0,0.61704454]
[1642260416395,0.29202626,43199.0,43198.0,0.75917548]
[1642260417145,0.00065359,43200.0,43198.0,0.69266079]
[1642260417347,0.00065359,43200.0,43199.0,0.176385]
[1642260417744,0.00079111,43200.0,43199.0,0.176385]
[1642260418345,0.00079111,43200.0,43199.0,0.44147967]
[1642260419746,0.00079111,43200.0,43199.0,0.39667967]
[1642260420147,2.35442572,43200.0,43199.0,0.39667967]
[1642260420346,2.35442572,43200.0,43199.0,0.31139467]
[1642260420548,2.45442572,43200.0,43198.0,0.33072895]
[1642260420990,0.00012033,43199.0,43198.0,0.33072895]
[1642260421488,0.00012033,43199.0,43198.0,0.72624143]
[1642260421888,0.00012033,43199.0,43198.0,0.41601595]
[1642260422790,0.00012033,43199.0,43198.0,0.69984346]
[1642260424841,0.00012033,43199.0,43198.0,0.65524346]
[1642260425242,0.00012033,43199.0,43198.0,0.37141595]
[1642260425447,2.2740516,43199.0,43198.0,0.36641695]
[1642260425644,0.10012033,43199.0,43198.0,0.28112895]
[1642260426243,0.10012033,43199.0,43198.0,0.36641695]
[1642260426443,0.00012033,43199.0,43198.0,0.63963521]
[1642260427245,0.00012033,43199.0,43198.0,1.18963521]
[1642260427746,0.00012033,43199.0,43198.0,0.63963521]
[1642260429317,0.00012033,43199.0,43198.0,1.08963521]
[1642260429521,0.00012033,43199.0,43198.0,0.36641695]
[1642260429718,0.00012033,43199.0,43198.0,0.28112895]
[1642260429917,0.00012033,43199.0,43198.0,0.32131695]
[1642260430731,0.00012033,43199.0,43198.0,0.59840609]
[1642260431519,0.00012033,43199.0,43198.0,0.51311809]
[1642260433747,0.00012033,43199.0,43198.0,0.23602895]
[1642260433946,0.00012033,43199.0,43194.0,0.37725428]
[1642260434146,0.00065359,43200.0,43199.0,0.00987967]
[1642260434946,0.00065359,43200.0,43197.0,0.34318374]
[1642260435147,0.00073954,43200.0,43197.0,0.34318374]
[1642260436695,0.00073954,43200.0,43198.0,0.28065121]
[1642260439645,0.00073954,43200.0,43197.0,0.34318374]
[1642260439842,0.00073954,43200.0,43191.0,1.6109]
[1642260440439,0.00087755,43198.0,43191.0,1.6109]
[1642260440640,0.00087755,43198.0,43193.0,0.33842065]
[1642260441042,0.00087755,43198.0,43196.0,0.24224133]
[1642260441444,0.00073954,43200.0,43196.0,0.24224133]
[1642260441745,0.00087754,43199.0,43196.0,0.24224133]
[1642260442544,0.00073954,43200.0,43196.0,0.24224133]
[1642260442945,0.00162066,43200.0,43196.0,0.24224133]
[1642260443391,0.294498,43199.0,43196.0,0.24224133]
[1642260444395,0.294498,43199.0,43191.0,1.6109]
[1642260444598,0.26195156,43198.0,43191.0,1.6109]
[1642260444996,0.26195156,43198.0,43191.0,1.5658]
[1642260445195,0.00088115,43197.0,43191.0,1.5658]
[1642260445396,0.104207,43196.0,43191.0,1.5658]
[1642260445797,0.38517478,43196.0,43191.0,1.5658]
[1642260446196,0.48517478,43196.0,43191.0,1.5658]
[1642260446398,0.48596905,43196.0,43191.0,1.94469091]
[1642260447450,0.48517478,43196.0,43191.0,1.94469091]
[1642260447646,0.4859791,43196.0,43191.0,1.94469091]
[1642260447850,0.35,43193.0,43191.0,1.5658]
[1642260448049,2.25519337,43192.0,43191.0,1.5658]
[1642260448247,0.48067646,43192.0,43191.0,1.5658]
[1642260448447,0.58067646,43192.0,43191.0,1.56586876]
[1642260448848,1.08067646,43192.0,43191.0,1.56586876]
[1642260449649,1.18067646,43192.0,43191.0,1.56586876]
[1642260449849,0.58067646,43192.0,43191.0,1.56586876]
[1642260450055,0.58067646,43192.0,43191.0,1.52116876]
[1642260450056,0.579432,43192.0,43191.0,1.52116876]
[1642260450251,0.1463,43192.0,43191.0,1.52116876]
[1642260450650,0.0463,43192.0,43191.0,1.52116876]
[1642260451889,1.88126589,43192.0,43191.0,1.52116876]
[1642260452091,0.85526589,43192.0,43191.0,1.52116876]
[1642260452289,0.52281242,43192.0,43191.0,1.52116876]
[1642260452892,1.22281242,43192.0,43191.0,1.52116876]
[1642260453290,0.52281242,43192.0,43191.0,1.52116876]
[1642260453890,0.92281242,43192.0,43191.0,1.52116876]
[1642260454091,0.52281242,43192.0,43191.0,1.52116876]
[1642260455158,1.67281242,43192.0,43191.0,1.47596876]
[1642260455357,2.89881242,43192.0,43191.0,1.47596876]
[1642260455759,2.79881242,43192.0,43191.0,1.47596876]
[1642260455956,1.57281242,43192.0,43191.0,1.47596876]
[1642260456155,2.79881242,43192.0,43191.0,1.47596876]
[1642260456355,1.57281242,43192.0,43191.0,1.47596876]
[1642260456556,0.52281242,43192.0,43191.0,1.47596876]
[1642260456760,2.95363874,43192.0,43191.0,0.8827299]
[1642260457060,3.20651335,43192.0,43191.0,0.8827299]
[1642260457456,4.43251335,43192.0,43191.0,0.4193149]
[1642260458059,0.00128373,43184.0,43183.0,0.00084471]
[1642260458260,0.057929,43183.0,43179.0,0.32164702]
[1642260458494,0.375219,43182.0,43179.0,0.32164702]
[1642260458694,0.19425806,43181.0,43179.0,0.32164702]
[1642260458895,0.375219,43180.0,43179.0,0.32164702]
[1642260459093,0.75531231,43180.0,43179.0,0.32164702]
[1642260459293,0.75531231,43180.0,43179.0,0.3218533]
[1642260460194,0.75531231,43180.0,43179.0,0.00020628]
[1642260460401,0.475219,43180.0,43179.0,0.00020628]
[1642260460595,0.47647264,43180.0,43178.0,0.00022347]
[1642260460996,0.475219,43180.0,43177.0,0.00084452]
[1642260461195,0.475219,43180.0,43178.0,0.00022347]
[1642260461396,0.475219,43180.0,43179.0,0.49640448]
[1642260461596,0.1,43180.0,43179.0,0.49640448]
[1642260461997,0.2836,43186.0,43180.0,0.19749745]
[1642260462240,0.0463,43191.0,43180.0,0.19749745]
[1642260462241,0.1463,43191.0,43180.0,0.19749745]
[1642260462444,0.375219,43190.0,43181.0,0.0001719]
[1642260462646,0.475219,43190.0,43181.0,0.0001719]
[1642260462841,0.72902852,43190.0,43181.0,0.0001719]
[1642260463045,0.057917,43189.0,43181.0,0.0001719]
[1642260463241,0.375219,43188.0,43183.0,0.00084446]
[1642260463442,0.375219,43188.0,43186.0,0.27169108]
[1642260463642,0.475219,43188.0,43186.0,0.27169108]
[1642260463842,0.475219,43188.0,43187.0,6.876e-05]
[1642260464246,0.4764252,43188.0,43187.0,6.876e-05]
[1642260464445,0.70501668,43188.0,43187.0,6.876e-05]
[1642260464642,0.70501668,43188.0,43183.0,0.00084458]
[1642260464643,0.4764252,43188.0,43183.0,0.00084458]
[1642260464842,0.4764252,43188.0,43184.0,0.00012033]
[1642260465244,0.4764252,43188.0,43179.0,0.28002547]
[1642260465446,0.475219,43188.0,43183.0,0.30999585]
[1642260466593,0.475219,43188.0,43186.0,0.33577127]
[1642260467194,0.375219,43188.0,43186.0,0.33577127]
[1642260467395,0.00050822,43190.0,43186.0,0.33577127]
[1642260467594,0.375219,43189.0,43186.0,0.33577127]
[1642260467794,8.595e-05,43189.0,43186.0,0.33577127]
[1642260467995,6.876e-05,43188.0,43186.0,0.33577127]
[1642260468396,0.00050825,43190.0,43186.0,0.33577127]
[1642260468796,8.595e-05,43189.0,43186.0,0.33577127]
[1642260469195,6.876e-05,43188.0,43186.0,0.33577127]
[1642260469398,6.876e-05,43188.0,43187.0,0.96052483]
[1642260469657,0.00093554,43190.0,43187.0,0.835327]
[1642260469850,6.876e-05,43188.0,43187.0,0.75]
[1642260470050,8.595e-05,43189.0,43187.0,0.75]
[1642260470250,6.876e-05,43188.0,43187.0,0.705]
[1642260470451,6.876e-05,43188.0,43186.0,0.33577127]
[1642260472556,6.876e-05,43188.0,43187.0,1.335326]
[1642260472755,6.876e-05,43188.0,43187.0,1.33660196]
[1642260472955,6.876e-05,43188.0,43183.0,0.0463]
[1642260472956,0.60006876,43188.0,43183.0,0.0463]
[1642260473159,0.22013922,43187.0,43181.0,0.00078082]
[1642260473403,6.876e-05,43188.0,43181.0,0.00078082]
[1642260473404,0.10006876,43188.0,43181.0,0.00078082]
[1642260473603,0.22013922,43187.0,43181.0,0.00078082]
[1642260473799,0.22013922,43187.0,43180.0,6.876e-05]
[1642260473800,0.10593537,43188.0,43180.0,6.876e-05]
[1642260473998,0.34431335,43185.0,43181.0,0.00078084]
[1642260474400,0.44431335,43185.0,43181.0,0.00078084]
[1642260474800,0.66445257,43185.0,43181.0,0.00078084]
[1642260475103,0.00128797,43182.0,43177.0,0.91656876]
[1642260475299,0.00128797,43182.0,43181.0,0.00078085]
[1642260475498,1.27651597,43182.0,43181.0,0.00078085]
[1642260475904,1.37651597,43182.0,43181.0,0.00078085]
[1642260476100,0.47651597,43182.0,43173.0,0.29704338]
[1642260476298,0.20655315,43181.0,43173.0,0.29704338]
[1642260476500,0.20655315,43181.0,43179.0,0.0007809]
[1642260476802,0.375228,43180.0,43179.0,0.0007809]
[1642260477141,0.67520507,43180.0,43179.0,0.0007809]
[1642260477343,0.67520507,43180.0,43174.0,0.26531999]
[1642260477540,0.26462192,43178.0,43177.0,0.00078095]
[1642260478041,0.29997707,43180.0,43177.0,0.00078095]
[1642260478241,0.375228,43179.0,43177.0,0.00078095]
[1642260478641,0.19224905,43178.0,43175.0,8.595e-05]
[1642260478840,0.10128004,43179.0,43176.0,0.00078099]
[1642260479242,0.1,43179.0,43176.0,0.00078099]
[1642260479643,0.55406993,43181.0,43176.0,0.00078099]
[1642260479644,0.65406993,43181.0,43176.0,0.00078099]
[1642260479844,0.375228,43180.0,43175.0,8.595e-05]
[1642260480045,0.475228,43180.0,43175.0,0.00086696]
[1642260480243,0.475228,43180.0,43174.0,0.26521685]
[1642260480244,0.475228,43180.0,43174.0,0.22148381]
[1642260480447,6.876e-05,43179.0,43174.0,0.22148381]
[1642260482097,0.00129964,43179.0,43166.0,0.9302]
[1642260482295,0.00129964,43179.0,43166.0,0.93147241]
[1642260482496,0.00129964,43179.0,43168.0,0.00012033]
[1642260482694,6.876e-05,43179.0,43168.0,0.00012033]
[1642260483094,6.876e-05,43179.0,43174.0,0.25550737]
[1642260483495,6.876e-05,43179.0,43172.0,0.75826379]
[1642260484395,6.876e-05,43179.0,43175.0,0.25432106]
[1642260485249,6.876e-05,43179.0,43175.0,0.20972106]
[1642260485449,6.876e-05,43179.0,43173.0,0.00077395]
[1642260485751,6.876e-05,43179.0,43172.0,0.30963255]
[1642260485752,0.00120558,43176.0,43172.0,0.30963255]
[1642260485948,0.00120558,43176.0,43173.0,0.00077395]
[1642260486749,6.876e-05,43179.0,43173.0,0.00077395]
[1642260486949,6.876e-05,43179.0,43172.0,0.75978218]
[1642260487149,6.876e-05,43179.0,43173.0,0.00077395]
[1642260488148,6.876e-05,43179.0,43172.0,0.75978218]
[1642260488399,6.876e-05,43179.0,43173.0,0.00077395]
[1642260489402,6.876e-05,43179.0,43172.0,0.75978218]
[1642260489603,6.876e-05,43179.0,43173.0,0.00077395]
[1642260490003,0.35128778,43179.0,43173.0,0.00077395]
[1642260490205,0.00122327,43174.0,43172.0,0.71545613]
[1642260490405,0.057932,43178.0,43172.0,0.71545613]
[1642260491416,0.10128778,43179.0,43172.0,0.71545613]
[1642260491608,0.00128778,43179.0,43172.0,0.71545613]
[1642260491805,6.876e-05,43179.0,43172.0,0.71545613]
[1642260493548,6.876e-05,43179.0,43172.0,0.92475219]
[1642260493749,6.876e-05,43179.0,43172.0,0.71545613]
[1642260493946,6.876e-05,43179.0,43173.0,0.20711416]
[1642260494449,0.00093566,43178.0,43172.0,0.71545613]
[1642260494647,0.00093566,43178.0,43172.0,0.92318368]
[1642260495448,6.876e-05,43179.0,43172.0,0.92318368]
[1642260495648,0.00093566,43178.0,43172.0,0.92318368]
[1642260495897,0.00093566,43178.0,43173.0,0.32755548]
[1642260496497,6.876e-05,43179.0,43173.0,0.32755548]
[1642260496901,0.00093566,43178.0,43173.0,0.32755548]
[1642260497097,0.00093566,43178.0,43173.0,0.17755548]
[1642260497899,0.28921231,43179.0,43173.0,0.17755548]
[1642260498100,0.21339355,43178.0,43173.0,0.17755548]
[1642260498299,0.00093566,43178.0,43173.0,0.17755548]
[1642260498998,0.38921231,43179.0,43173.0,0.17755548]
[1642260499203,0.00093566,43178.0,43173.0,0.17755548]
[1642260499656,0.00093566,43178.0,43172.0,0.2653065]
[1642260500058,0.21898913,43178.0,43172.0,0.2653065]
[1642260500254,0.20966838,43178.0,43172.0,0.2206065]
[1642260500456,0.21060404,43178.0,43172.0,0.2206065]
[1642260500655,0.21060404,43178.0,43171.0,0.27377385]
[1642260501558,0.00123718,43175.0,43171.0,0.00076698]
[1642260502556,0.22035398,43176.0,43168.0,0.00012033]
[1642260502557,0.22035398,43176.0,43172.0,0.93300968]
[1642260503392,0.00093563,43178.0,43172.0,0.93300968]
[1642260503794,0.58409289,43179.0,43172.0,0.93300968]
[1642260503993,0.00093566,43178.0,43172.0,0.93300968]
[1642260504996,0.58409289,43179.0,43172.0,0.93300968]
[1642260505197,0.00093566,43178.0,43172.0,0.88830968]
[1642260505396,0.00093566,43178.0,43171.0,0.00076697]
[1642260505699,0.00126285,43173.0,43171.0,0.00076697]
[1642260506095,0.21060777,43173.0,43171.0,0.00076697]
[1642260506297,0.21060777,43173.0,43168.0,0.00012033]
[1642260506600,0.26079149,43172.0,43170.0,0.00076702]
[1642260506798,0.19634414,43171.0,43170.0,0.00076702]
[1642260507454,0.19634414,43171.0,43164.0,0.9676]
[1642260507653,0.19634414,43171.0,43168.0,0.00076706]
[1642260507852,1.4,43169.0,43168.0,0.00076706]
[1642260508052,1.95668032,43169.0,43168.0,0.00076706]
[1642260508253,2.01462932,43169.0,43168.0,0.00088739]
[1642260508752,2.01462932,43169.0,43168.0,0.00012033]
[1642260509152,2.20502403,43169.0,43167.0,0.00013752]
[1642260509353,2.125228,43168.0,43167.0,0.00013752]
[1642260509655,2.271528,43168.0,43167.0,0.00013752]
[1642260510053,0.521528,43168.0,43167.0,0.00013752]
[1642260510251,1.2,43167.0,43159.0,0.2617095]
[1642260510451,0.30659029,43164.0,43159.0,0.2617095]
[1642260510652,0.40659029,43164.0,43159.0,0.2617095]
[1642260511094,0.40659029,43164.0,43159.0,0.25864047]
[1642260511494,0.5965773,43164.0,43159.0,0.25864047]
[1642260511694,0.40659029,43164.0,43159.0,0.25864047]
[1642260511997,0.39611772,43164.0,43159.0,0.25864047]
[1642260512199,0.18956601,43163.0,43159.0,0.25864047]
[1642260512398,0.18956601,43163.0,43159.0,0.25906418]
[1642260512595,0.34195108,43161.0,43159.0,0.00042371]
[1642260512998,0.00128435,43160.0,43159.0,0.00042371]
[1642260513396,0.00128435,43160.0,43158.0,0.0005336]
[1642260513797,0.00128435,43160.0,43159.0,0.30648476]
[1642260513996,0.1,43161.0,43160.0,0.3181747]
[1642260514195,0.29611772,43164.0,43159.0,0.30648476]
[1642260514857,0.29611772,43164.0,43159.0,0.30724514]
[1642260515252,0.29611772,43164.0,43159.0,0.26244514]
[1642260515851,0.29611772,43164.0,43159.0,0.26168476]
[1642260516051,0.35406972,43164.0,43159.0,0.26244514]
[1642260516453,0.45406972,43164.0,43159.0,0.26244514]
[1642260516853,0.00124857,43161.0,43159.0,0.00076038]
[1642260517055,0.05920557,43161.0,43158.0,0.0005336]
[1642260517253,0.05920557,43161.0,43159.0,0.00076038]
[1642260517457,0.375228,43160.0,43159.0,0.00076038]
[1642260517654,0.475228,43160.0,43159.0,0.00076038]
[1642260517858,0.1,43160.0,43159.0,0.00076038]
[1642260518053,0.1,43160.0,43159.0,0.32161793]
[1642260518254,0.1,43160.0,43159.0,0.67085755]
[1642260518692,0.40142033,43167.0,43159.0,0.94130071]
[1642260518892,0.30142033,43167.0,43159.0,0.94130071]
[1642260519094,0.00010314,43166.0,43159.0,0.94130071]
[1642260519492,8.595e-05,43165.0,43159.0,0.94130071]
[1642260519693,8.595e-05,43165.0,43160.0,0.00076035]
[1642260519892,6.876e-05,43164.0,43160.0,0.00076035]
[1642260520294,0.00010314,43166.0,43159.0,0.89736106]